Cogmind - Beta 11.1 @@@ ROGUE MODE // 2022.11.13 @ 18:14:40 Player: BRiNK Result: Destroyed by G-34 Mercenary with Small Laser Performance ------------- Evolutions (0) 0 Regions Visited (2) 400 Robots Destroyed (20) 100 Value Destroyed (479) 479 Prototype IDs (0) 0 Alien Tech Used (0) 0 Bonus (0) 0 TOTAL SCORE: 979 Bonus ------- None Cogmind --------- Core Integrity 0/250 Matter 300/300 Energy 100/100 System Corruption 0% Temperature Cool (6) Movement Walking (120) Location -10/Mines Parts ------- > --- POWER (1) -------- (None) > --- PROPULSION (2) --- Aluminum Leg Aluminum Leg > --- UTILITY (2) ------ Small Storage Unit Visual Processing Unit > --- WEAPON (2) ------- Assault Rifle Light Assault Rifle > --- INVENTORY (8) ---- Light Treads Light Treads Aluminum Leg Sensor Drone Bay Small Laser Light Assault Rifle Datajack Peak State ------------ > --- POWER ------------ Light Ion Engine > --- PROPULSION ------- Aluminum Leg Aluminum Leg > --- UTILITY ---------- Small Storage Unit Visual Processing Unit > --- WEAPON ----------- Assault Rifle Light Assault Rifle > --- INVENTORY -------- Light Treads Light Treads Sensor Drone Bay Datajack [Rating: 9] Favorites ----------- Power Light Ion Engine Engine Light Ion Engine Propulsion Aluminum Leg Leg Aluminum Leg Utility Small Storage Unit Storage Small Storage Unit Processor Visual Processing Unit Protection Light Armor Plating Weapon Assault Rifle Ballistic Gun Assault Rifle Launcher Grenade Launcher Build | -11 -10 -10 ------- Run | Scr Mat Min Slots Evolved . | . . . Power . | . . . Propulsion . | . . . Utility . | . . . Weapon . | . . . Parts Attached 18 | 4 7 7 Power 1 | 1 . . Engine 1 | 1 . . Core . | . . . Reactor . | . . . Propulsion 8 | 1 4 3 Treads . | . . . Leg 8 | 1 4 3 Wheel . | . . . Hover . | . . . Flight . | . . . Utility 3 | 1 2 . Device . | . . . Storage 1 | 1 . . Processor 1 | . 1 . Hackware . | . . . Protection 1 | . 1 . Artifact . | . . . Weapon 6 | 1 1 4 Energy Gun . | . . . Energy Cannon . | . . . Ballistic Gun 5 | 1 1 3 Ballistic Cannon . | . . . Launcher 1 | . . 1 Special Weapon . | . . . Impact Weapon . | . . . Slashing Weapon . | . . . Piercing Weapon . | . . . Special Melee Weapon . | . . . Unidentified Prototypes . | . . . Parts Lost 7 | . 1 6 Power 1 | . . 1 Propulsion 2 | . . 2 Utility 1 | . 1 . Weapon 3 | . . 3 Highest Loss Streak 2 | . 1 2 To Critical Strikes . | . . . Average Slot Usage (%) 92 | . 97 89 Engine 13 | . 14 12 Leg 25 | . 28 24 Storage 14 | . 14 14 Processor 9 | . 1 14 Protection 3 | . 10 . Ballistic Gun 22 | . 28 20 Launcher 2 | . . 3 Naked Turns . | . . . Heaviest Build 14 | 9 14 13 Greatest Support 20 | 10 20 20 Greatest Overweight (x) 1 | 1 . 1 Average Overweight (x) . | . . . Largest Inventory Capacity 8 | 8 8 8 Average Capacity 7 | 7 8 8 Most Carried 7 | 6 7 7 Average Carried 5 | 4 5 5 Final Capacity 8 | 8 8 8 Final Carried 7 | 5 6 7 Class Distribution -------------------- 87% | Mutant 12% | Scavenger-Mutant Dominant Class ---------------- Mutant | -10/Materials Mutant | -10/Mines Resources | -11 -10 -10 ----------- Run | Scr Mat Min Matter Collected 669 | 198 249 222 Remotely . | . . . Salvage Created 680 | . 376 304 Parts 44 | . 19 25 Haulers Intercepted . | . . . Recyclers Shooed . | . . . Parts Field Recycled . | . . . Retrieved Matter . | . . . Parts Self-Destructed . | . . . Prevented . | . . . Kills | -11 -10 -10 ------- Run | Scr Mat Min Combat Hostiles Destroyed 21 | . 6 15 Guns 18 | . 6 12 AOE 3 | . . 3 Classes Destroyed 5 | . 3 2 Recycler 1 | . 1 . Watcher 1 | . 1 . Swarmer 7 | . . 7 Grunt 11 | . 6 5 Assembled 3 | . . 3 Best Kill Streak 3 | . 3 3 Combat Bots Only 3 | . 2 3 Max Kills in Single Turn 2 | . 1 2 Gunslinging . | . . . Exploded 1 | . . 1 Melee . | . . . Uniques/NPCs Destroyed . | . . . Combat | -11 -10 -10 -------- Run | Scr Mat Min Damage Taken 1085 | . 384 701 Core 254 | . 63 191 Absorbed by Shields . | . . . Core Remaining (%) 100 | 100 . . Volleys Fired 81 | 1 41 39 Largest 2 | 1 2 2 Hottest 50 | 20 40 50 Shots Fired 153 | 1 82 70 Gun 148 | 1 82 65 Cannon . | . . . Launcher 5 | . . 5 Special . | . . . Kinetic 148 | 1 82 65 Thermal . | . . . Explosive 5 | . . 5 Electromagnetic . | . . . Robot Hit Streak 11 | . 11 6 Robot Miss Streak 5 | . 5 4 Penetration Max . | . . . Secondary Targets 1 | . . 1 Max Gunslinging Chain 1 | . . 1 Shots Hit Robots 88 | . 53 35 Core Hits 40 | . 20 20 Critical Kills 1 | . . 1 Critical Parts Destroyed 1 | . 1 . Critical Strikes 2 | . 1 1 Destroy 2 | . 1 1 Melee Attacks . | . . . Impact . | . . . Slashing . | . . . Piercing . | . . . Sneak Attacks . | . . . Combat Hostiles . | . . . Follow-up Attacks . | . . . Damage Inflicted 1161 | . 561 600 Guns 934 | . 552 382 Cannons . | . . . Explosions 208 | . . 208 Melee . | . . . Ramming 19 | . 9 10 Kinetic 934 | . 552 382 Thermal . | . . . Explosive 208 | . . 208 Electromagnetic . | . . . Impact . | . . . Slashing . | . . . Piercing . | . . . Highest Corruption . | . . . Average Corruption . | . . . Corruption Purged . | . . . Corruption Blocked . | . . . Overload Shots . | . . . Overflow Damage 1 | . . 1 Projectiles . | . . . Explosions 1 | . . 1 Melee . | . . . Knockbacks . | . . . Impact . | . . . Kinetic . | . . . Secondary . | . . . Self-Inflicted Damage 92 | . . 92 Shots 3 | . . 3 Rammed . | . . . Targets Rammed 9 | . 3 6 Kicked 9 | . 3 6 Crushed . | . . . Highest Temperature 40 | . 40 20 Average Temperature 11 | . 13 6 Received Heat Transfer 351 | . 219 132 Siege Activations . | . . . Robots Corrupted . | . . . Combat Hostiles . | . . . Parts Fried . | . . . Impact Corruptions . | . . . Robots Melted . | . . . Combat Hostiles . | . . . Parts Melted . | . . . Heat Transferred . | . . . Parts Sabotaged . | . . . Parts Stolen . | . . . Parts Stripped . | . . . Power Chain Reactions . | . . . Missiles Intercepted . | . . . Alert | -11 -10 -10 ------- Run | Scr Mat Min Peak Influence 292 | . 225 292 Initial 87 | . . 87 Average 130 | . 87 169 Maximum Alert Level 1 | . 1 1 Low Security (%) 67 | 100 89 52 Level 1 32 | . 10 47 Level 2 . | . . . Level 3 . | . . . Level 4 . | . . . Level 5 . | . . . High Security . | . . . Max Security . | . . . Squads Dispatched 1 | . 1 . Investigation . | . . . Extermination . | . . . Reinforcement 1 | . 1 . Assault . | . . . Garrison . | . . . Intercept . | . . . Searches Triggered . | . . . Construction Impeded . | . . . Haulers Reinforced . | . . . Active Scanning Responses . | . . . Cargo Convoy Interrupts . | . . . Stealth | -11 -10 -10 --------- Run | Scr Mat Min Distress Signals 1 | . 1 . Communications Jammed . | . . . Distress Signals . | . . . Times Spotted 33 | . 12 21 Peak Tracking Total 4 | . 4 3 Tactical Retreats 2 | . . 2 Traps | -11 -10 -10 ------- Run | Scr Mat Min Traps Triggered . | . . . Indirectly . | . . . Trap Hack Attempts . | . . . Triggered . | . . . Disarmed . | . . . Reprogrammed . | . . . Reused . | . . . Traps Extracted . | . . . Installed . | . . . Triggered . | . . . Machines | -11 -10 -10 ---------- Run | Scr Mat Min Machines Disabled . | . . . Max in Single Turn . | . . . Machines Sabotaged . | . . . Garrisons Compromised . | . . . Overloaded Fab Kills . | . . . Hacking | -11 -10 -10 --------- Run | Scr Mat Min Machines Accessed 3 | . 2 1 Terminals 2 | . 2 . Fabricators . | . . . Repair Stations . | . . . Recycling Units . | . . . Scanalyzers . | . . . Garrison Access . | . . . Total Hacks 10 | . 9 1 Successful 4 | . 3 1 Failed 6 | . 6 . Catastrophic 1 | . 1 . Database Lockouts . | . . . Manual 2 | . 2 . Terminals 9 | . 9 . Fabricators . | . . . Repair Stations . | . . . Recycling Units . | . . . Scanalyzers . | . . . Garrison Access . | . . . Terminal Hacks 4 | . 3 1 Open Door 1 | . . 1 Branch Access Points 1 | . 1 . Unreport Threat 1 | . 1 . Recall Investigation 1 | . 1 . Fabricator Hacks . | . . . Repair Station Hacks . | . . . Recycling Unit Hacks . | . . . Scanalyzer . | . . . Garrison Access Hacks . | . . . Unauthorized Hacks . | . . . Terminals . | . . . Fabricators . | . . . Repair Stations . | . . . Recycling Units . | . . . Scanalyzers . | . . . Garrison Access . | . . . Data Cores Recovered . | . . . Used . | . . . Hacking Detections 2 | . 2 . Full Trace Events 1 | . 1 . Feedback Events . | . . . Feedback Blocked . | . . . Robot Schematics Acquired . | . . . Robots Built . | . . . Authchips . | . . . Time . | . . . Total Robot Build Rating . | . . . Part Schematics Acquired . | . . . Parts Built . | . . . Authchips . | . . . Time . | . . . Total Part Build Rating . | . . . Parts Repaired . | . . . Time . | . . . Parts Recycled . | . . . Recycled Matter . | . . . Retrieved Matter . | . . . Retrieved Components . | . . . Parts Scanalyzed . | . . . Part Schematics Acquired . | . . . Parts Damaged . | . . . Bothacking | -11 -10 -10 ------------ Run | Scr Mat Min Used RIF Installer . | . . . Robots Hacked . | . . . Non-combat . | . . . Combat . | . . . Robot Hacks Applied . | . . . Relay Couplers Released . | . . . Fabnet Peak Effective % . | . . . Robots Rewired . | . . . Allies Hacked . | . . . Hacks Repelled . | . . . Allies | -11 -10 -10 -------- Run | Scr Mat Min Total Allies . | . . . Largest Group . | . . . Highest-Rated Group . | . . . Highest-Rated Ally . | . . . Total Orders . | . . . Ally Attacks . | . . . Total Damage . | . . . Kills . | . . . Allies Corrupted . | . . . Allies Melted . | . . . Intel | -11 -10 -10 ------- Run | Scr Mat Min Robot Analysis Total . | . . . Derelict Logs Recovered 1 | . . 1 Drone Launches . | . . . Drone Recoveries . | . . . Exploration | -11 -10 -10 ------------- Run | Scr Mat Min Turns Passed 1165 | 76 389 700 Spaces Moved 686 | 54 202 430 Core 10 | 10 . . Treads . | . . . Legs 676 | 44 202 430 Wheels . | . . . Hover . | . . . Flight . | . . . Fastest Speed 50 | 50 120 120 Average Speed 127 | 114 120 133 Slowest Speed 190 | 120 120 190 Overloaded Moves . | . . . Propulsion Burnouts . | . . . Robots Hopped . | . . . Cave-ins Triggered . | . . . Exploration Rate (%) 39 | 4 52 63 Regions Visited 2 Branch Regions 1 Pre-discovered Areas . | . . . Known Exits Taken 1 | . 1 . Unknown Exits Taken 1 | 1 . . Scrap Searched 1 | . . 1 Spaces Dug . | . . . Terrain Destroyed 33 | . . 33 Melee . | . . . Projectile . | . . . AOE 33 | . . 33 Terrain Rammed . | . . . Walls Destroyed . | . . . Machines Disabled . | . . . Actions | -11 -10 -10 --------- Run | Scr Mat Min Total 832 | 67 273 492 Wait 16 | . 12 4 Move 684 | 53 201 430 Hop . | . . . Pick Up 22 | 9 7 6 Fast Attach . | . . . Attach 13 | 4 4 5 Detach . | . . . Swap 5 | . 3 2 Drop 2 | . 2 . Fire 81 | 1 41 39 Melee . | . . . Ram . | . . . Kick 9 | . 3 6 Crush . | . . . Escape Stasis . | . . . Rewire . | . . . Trap . | . . . Miscellaneous . | . . . Route ------- -11/Scrapyard -10/Materials -10/Mines History --------- Turn | Location | Event 16 | -11/Scrapyard | Discovered new exit (range 14) 77 | -11/Scrapyard | Entered Materials 157 | -10/Materials | Identified exit to Mines 301 | -10/Materials | Build established: Mutant 466 | -10/Materials | Entered Mines 608 | -10/Mines | Excavation squad dispatched 608 | -10/Mines | A large section of the Mines collapsed 631 | -10/Mines | Core integrity fell below 50% 717 | -10/Mines | Learned location of 1 exit from Materials 746 | -10/Mines | Found the Drone Emporium 755 | -10/Mines | Found Prototype Device 808 | -10/Mines | Core integrity fell below 20% 858 | -10/Mines | Excavation squad dispatched 1108 | -10/Mines | Excavation squad dispatched 1166 | -10/Mines | Destroyed by G-34 Mercenary with Small Laser Last Messages --------------- 01067_ G-34 Mercenary destroyed. 01071_ Acquired 37 matter. 01074_ Acquired Aluminum Leg. 01097_ Aluminum Leg destroyed. 01098_ Lgt. Ion Engine destroyed. 01100_ G-34 Mercenary destroyed. 01107_ Acquired 46 matter. 01108_ ALERT: Derelict activity in mines confirmed. Dispatching additional escorted excavation squad. 01108_ Acquired 2 matter. 01110_ Acquired Aluminum Leg. 01112_ Acquired 10 matter. 01115_ Acquired Sml. Laser. 01136_ G-34 Mercenary destroyed. 01141_ Acquired 12 matter. 01148_ Kicked K-01 Serf out of the way. 01149_ Kicked T-07 Excavator. 01156_ G-34 Mercenary destroyed. 01158_ Acquired 8 matter. 01161_ Acquired 4 matter. Map ----- +----------------------------------------------------+ | | | | | | | | | | | | | | | | | | | | | ?????????????????????????????????????????????????? | | ?????????????????????????????????????????????????? | | ?????????????????????????????????????????????????? | | ?????????????????????????????????????????????????? | | ?????????????????????????????????????????????????? | | ?????????????????????????????????????????????????? | | ?????????????????????????????????????????????????? | | ?????????????????????????????????????????????##### | | ?????????????????????????????????????????????# | | ?????????????????????????????????????????????# | | ?????????????????????????????????????????????# | | ????????????????????????????#????????????????# | | ??????????????????????????? #????????????????# | | ????????????????????????### #????????????????# " | | ??????????????###???????#*g ?????????????????# " | | ?????????????## ##?????#@#??????????????????# " | | ?????????????#" ###???#=#?????????????###??##### | | ?????????????# % ####?#[#???########## ##?????? | | ??????????????# " ####%##### ##????? | | ???????????????# " % % ##???? | | ???????????????# " r ##??? | | ???????????????# #####r#### ### ##?? | | ???????????????# #####%#??#####?## #?? | | ???????????????## % =#????????## #?? | | ????????????????## ######%##??????## #?? | | ?????????????????## ## ##??#### ##?? | | ??????????????????#### # #?## ##??? | | ?????????????????????### #?# ######???? | | ???????????????????????## #?# ##???????? | | ????????????????????????## ==#?## = ##?????## | | ?????????????????????????##%=#??### =%* ####### | | ??????????????????????????#= ##???#### * = | | ??????????????????????????## ##?????## == | | ???????????????????????????#* #??????## ### | | ???????????????????????????# ##??????###?# | | ???????????????????????????# ###???????# | | ???????????????????????????# ##??????# | | ???????????????????????????## ######?# | | ????????????????????????????# %!! #?## #### | | ????????????????????????????# ## * #??####??? | +----------------------------------------------------+ Best States ------------- Heat Dissipation 25 Energy Generation 10 Energy Capacity 125 Matter Stores 300 Matter Capacity 300 Sight Range 18 Terrain Scan Density 10 Armor Coverage 150 Evasion (%) 55 Item Schematics ----------------- None Robot Schematics ------------------ None Fabricated ------------ Nothing Alien Tech Used ----------------- None Achievements -------------- None Challenges ------------ None Game ------ Seed DisposableThiefClaws Manual? 0 Play Time 00:11:57 Cumulative 26.7 hours Start 2022.11.13 @ 18:04:29 End 2022.11.13 @ 18:14:40 Sessions 1 Manual Loads 0 Difficulty Rogue Special Mode None Game No. 32 Rogue 32 Adventurer 0 Explorer 0 Win Type - Total 0 Types 0/0/0/0/0/0/0/0/0 Lore% 24 Gallery% 30 Achievement% 24 Wizard Run 0 Options --------- ASCII 0 Keyboard 0 Movement Mouse Keybinds 0 Fullscreen 1 Font 24/Crisp Map View 76x50 Tactical HUD 1 Map Filters NONE Filters NONE Steam 1 RUN: 030694d0-affe-44ee-9648-3e98e32f49c8